Organisation Name,Organisation Code,Organisational Unit,Service Category Label,Procurement Category,Supplier Name,Supplier Other ID,Payment Date,Transaction Number,Amount (�),Purpose
Eden District Council,http://opendatacommunities.org/id/district-council/eden,Technical Services Manager,Arts and Leisure,Other charges for services,MARK HARROD LTD,HAR062,08/10/2021,197755,1617.6,GOAL FOR CASTLETOWN
Eden District Council,http://opendatacommunities.org/id/district-council/eden,Technical Services Manager,Administrative Buildings,Maint/Rental CCTV,COMPASS CABLING SYSTEMS LTD,COM026,08/10/2021,197915,610,MAINTENANCE CCTV/ ACCESS/ FIRE SYSTEM
Eden District Council,http://opendatacommunities.org/id/district-council/eden,Environmental Services,1996 Mandatory Renovation Grants,Capital grants,THE EXCELLENT RAMP SYSTEM,EXE001,08/10/2021,197986,2600,FIN PAYMENT GRANT REF 210011
Eden District Council,http://opendatacommunities.org/id/district-council/eden,Commissioning & Tech Services Ass Dir,Emergency Planning and Works,Building Maintenance,AMEY PLC,TFE001,08/10/2021,197457,3589.4,PCS K/S DECEMBER ADDITIONAL COVID CLEANI
Eden District Council,http://opendatacommunities.org/id/district-council/eden,Commissioning & Tech Services Ass Dir,Emergency Planning and Works,Building Maintenance,AMEY PLC,TFE001,08/10/2021,197458,523.9,TH PENRITH ADDITIONSL COVID CLEAN DEC 20
Eden District Council,http://opendatacommunities.org/id/district-council/eden,Environmental Services,Appleby Fair,Transit Sites,BORDER GROUP LTD,BOR003,08/10/2021,197691,10780,2 WEEK RENTAL 3.8.21-11.08.21
Eden District Council,http://opendatacommunities.org/id/district-council/eden,Technical Services Manager,Administrative Buildings,Capital grants,PILIO LTD,PIL004,08/10/2021,197739,2368,12 MONTH PILIO SOFTWARE LICENSE
Eden District Council,http://opendatacommunities.org/id/district-council/eden,Legal Services Manager,Land Management,Planned Maintenance,GREENFIELDS HEAT & POWER LTD,GRE035,08/10/2021,197909,1731.32,DAMAGED PIPES APPLEBY HERITAGE
Eden District Council,http://opendatacommunities.org/id/district-council/eden,Commercial Services Manager,Commercial Services,Agency Staff,VIVID RESOURCING,VIV001,08/10/2021,197911,2750,TIME SHEET WE 19.09.21 GM
Eden District Council,http://opendatacommunities.org/id/district-council/eden,Commercial Services Manager,Commercial Services,Agency Staff,VIVID RESOURCING,VIV001,08/10/2021,197912,875,TIME SHEET W/E 19.9.21 FM
Eden District Council,http://opendatacommunities.org/id/district-council/eden,Environmental Services,1996 Mandatory Renovation Grants,Capital grants,PPM LTD,PPM001,08/10/2021,197997,7609.5,FIN PAYMENT GRANT REF 200055
Eden District Council,http://opendatacommunities.org/id/district-council/eden,Commercial Services Manager,Commercial Services,Agency Staff,VIVID RESOURCING,VIV001,08/10/2021,197998,4375,TIME SHEET WE 26.09.21 FM
Eden District Council,http://opendatacommunities.org/id/district-council/eden,Technical Services Manager,Administrative Buildings,Maint of Water Coolers,WATERLOGIC GB LTD,ANG007,08/10/2021,197686,969.06,RENTALS / ENV CHARGES
Eden District Council,http://opendatacommunities.org/id/district-council/eden,Technical Services Manager,Administrative Buildings,Maint of Water Coolers,WATERLOGIC GB LTD,ANG007,08/10/2021,197765,530.4,RENTAL 10.9.21-10.9.22
Eden District Council,http://opendatacommunities.org/id/district-council/eden,Technical Services Manager,Recycling,material price fluctuations,CUMBRIA WASTE RECYCLING LTD,CUM022,08/10/2021,197929,1584.26,CERT F-28 2021/22
Eden District Council,http://opendatacommunities.org/id/district-council/eden,Technical Services Manager,Closed Church Yards,GM INSPECTIONS & MAINTENANCE,URBASER LIMITED,URB002,08/10/2021,197930,34817.63,M-GM113
Eden District Council,http://opendatacommunities.org/id/district-council/eden,Technical Services Manager,Closed Church Yards,GM INSPECTIONS & MAINTENANCE,URBASER LIMITED,URB002,08/10/2021,197931,35039.3,M-GM112
Eden District Council,http://opendatacommunities.org/id/district-council/eden,Technical Services Manager,Recycling,material price fluctuations,CUMBRIA WASTE RECYCLING LTD,CUM022,08/10/2021,197932,2218.69,CERT BS-F-84 2021/22
Eden District Council,http://opendatacommunities.org/id/district-council/eden,Technical Services Manager,Closed Church Yards,GM INSPECTIONS & MAINTENANCE,URBASER LIMITED,URB002,08/10/2021,197933,34817.63,CERT M-GM114
Eden District Council,http://opendatacommunities.org/id/district-council/eden,Commercial Services Manager,Economic Development and Promotion,Professional fees,H PIGNEY & SON,PIG001,08/10/2021,197985,7784,Heritage Action Zone
Eden District Council,http://opendatacommunities.org/id/district-council/eden,Technical Services Manager,Recycling,VRC Payments,PENRITH TOWN COUNCIL,PEN080,08/10/2021,197987,700,MORRISONS BRING SITE 2ND RECHARGE 21/22
Eden District Council,http://opendatacommunities.org/id/district-council/eden,Technical Services Manager,Administrative Buildings,Electricity,NPOWER LTD,NPO001,08/10/2021,197988,1348.74,TH 1.8.21-31.8.21
Eden District Council,http://opendatacommunities.org/id/district-council/eden,Technical Services Manager,Administrative Buildings,Electricity,NPOWER LTD,NPO001,08/10/2021,197989,1258.11,TH 1.7.21-31.7.21
Eden District Council,http://opendatacommunities.org/id/district-council/eden,Environmental Services,Housing Capital,Capital grants,HOUSING 21,HOU004,08/10/2021,197992,144000,FINAL GRANT NEWTON HOUSE PENRITH
Eden District Council,http://opendatacommunities.org/id/district-council/eden,Commercial Services Manager,Commercial Services,Agency Staff,VIVID RESOURCING,VIV001,08/10/2021,197999,2750,TIME SHEET WE 26.09.21 GM
Eden District Council,http://opendatacommunities.org/id/district-council/eden,Technical Services Manager,Eden Leisure Centre & Appleby Swimming P,GLL Ad-hoc Sports Pitches,DUNCAN ROSS LAND DRAINAGE LTD,DUN008,08/10/2021,198023,1815,FERTILISE / APPLY WETTING AGENT
Eden District Council,http://opendatacommunities.org/id/district-council/eden,Commercial Services Manager,Community Development & Engagement,Community Fund,CLIBURN COMMUNITY PLAY AREA ASSOCIATION,CLI012,08/10/2021,198029,3000,1ST INSTALLMENT EDC COMMUNITY FUND
Eden District Council,http://opendatacommunities.org/id/district-council/eden,Commercial Services Manager,Community Development & Engagement,Community Fund,SOCKBRIDGE & TIRRIL PARISH COUNCIL,SOC001,08/10/2021,198033,540,1ST PAYMENT EDC COMMUNITY FUND GRANT
Eden District Council,http://opendatacommunities.org/id/district-council/eden,Technical Services Manager,Land Management,Building works,SUMO SURVEY SERVICES,SUM005,15/10/2021,197907,1540,SURVEYING SERVICES
Eden District Council,http://opendatacommunities.org/id/district-council/eden,Technical Services Manager,Eden Leisure Centre & Appleby Swimming P,Equipment � purchase,GREENFIELDS HEAT & POWER LTD,GRE035,15/10/2021,198093,2394.4,zip chilmaster
Eden District Council,http://opendatacommunities.org/id/district-council/eden,Commercial Services Manager,Economic Development and Promotion,Professional fees,CBEN PARTNERSHIP LLP,CBE001,15/10/2021,198107,9230.76,GREENING EDEN 3RD QTR 2021
Eden District Council,http://opendatacommunities.org/id/district-council/eden,Environmental Services,Environmental Services,Agency Staff,VIVID RESOURCING,VIV001,15/10/2021,197787,1480,TIME SHEET WE 12.09.21 BN
Eden District Council,http://opendatacommunities.org/id/district-council/eden,Technical Services Manager,Eden Leisure Centre & Appleby Swimming P,GLL Ad-hoc Sports Pitches,CITY ELECTRICAL FACTORS,CIT004,15/10/2021,197896,990,6 2KW M/HALIDE DBL ENDED
Eden District Council,http://opendatacommunities.org/id/district-council/eden,Environmental Services,Environmental Services,Agency Staff,VIVID RESOURCING,VIV001,15/10/2021,197910,1540,TIME SHEET WE 19.09.21
Eden District Council,http://opendatacommunities.org/id/district-council/eden,Environmental Services,Environmental Services,Agency Staff,G2 RECRUITMENT SOLUTIONS,G2R001,15/10/2021,197913,1660,TIME SHEET WE 19.09.21 RL
Eden District Council,http://opendatacommunities.org/id/district-council/eden,Legal Services Manager,Register of Electors,Postages,IDOX SOFTWARE LIMITED,IDO003,15/10/2021,197968,1874,IDOXELECTIONS - IVR SET UP
Eden District Council,http://opendatacommunities.org/id/district-council/eden,Transformation & Customers Head of,Corporate Services,Equipment � purchase,IDEAGEN GAEL,IDE007,15/10/2021,197996,3585,PENTANA RISK IMPLEMENTATION
Eden District Council,http://opendatacommunities.org/id/district-council/eden,Environmental Services,Environmental Services,Agency Staff,VIVID RESOURCING,VIV001,15/10/2021,198000,1480,TIME SHEET WE 29.9.21 BN
Eden District Council,http://opendatacommunities.org/id/district-council/eden,Information Technology Manager,Information Technology,Printers Contract,Konica Minolta Business Solutions UK Limited,KON003,15/10/2021,198011,1194.43,BIZHUB 1.7.21-30.9.21
Eden District Council,http://opendatacommunities.org/id/district-council/eden,Information Technology Manager,Information Technology,Shared IT Services,SOUTH LAKELAND DISTRICT COUNCIL,SOU006,15/10/2021,198015,78783.84,IT SHARED SERVICES  QTR 1 21/22
Eden District Council,http://opendatacommunities.org/id/district-council/eden,Information Technology Manager,Information Technology,Shared IT Services,SOUTH LAKELAND DISTRICT COUNCIL,SOU006,15/10/2021,198016,78783.84,IT SHARED SERVICES QTR 2 21/22
Eden District Council,http://opendatacommunities.org/id/district-council/eden,Legal Services Manager,Committee and Member Costs,Hire of premises,GREENWICH LEISURE LTD,NCL001,15/10/2021,198019,542.7,HALL HIRE COMMITTEE MEETING
Eden District Council,http://opendatacommunities.org/id/district-council/eden,Legal Services Manager,Committee and Member Costs,Hire of premises,GREENWICH LEISURE LTD,NCL001,15/10/2021,198037,825.57,SPORT HALL HIRE 15.07.21 STAFF RECHARGE
Eden District Council,http://opendatacommunities.org/id/district-council/eden,Commercial Services Manager,Economic Development and Promotion,Professional fees,WALTON GOODLAND LTD,WAL008,15/10/2021,198087,4196.5,RATE FOR SURVEYOR 1-30.9.21
Eden District Council,http://opendatacommunities.org/id/district-council/eden,Environmental Services,Homelessness,Accommodation,EDEN HOUSING ASSOCIATION LTD,EDE001,15/10/2021,198105,90302.11,QTR 2 2021-2022 HOMELESSNESS
Eden District Council,http://opendatacommunities.org/id/district-council/eden,Technical Services Manager,Land Charges,Professional fees,CUMBRIA COUNTY COUNCIL,CCC002,15/10/2021,198109,1488,highway searches july 21
Eden District Council,http://opendatacommunities.org/id/district-council/eden,Financial Services Manager,Payroll Control Account,Control account system code,REDACTED INFORMATION,ROG010,15/10/2021,198110,1900,TERMINATION SETTLEMENT
Eden District Council,http://opendatacommunities.org/id/district-council/eden,Financial Services Manager,Emergency Planning and Works,Grants and contributions,APPLEBY TRAVEL,APP042,15/10/2021,198111,2000,c-19 hardship fund
Eden District Council,http://opendatacommunities.org/id/district-council/eden,Technical Services Manager,Parks and Open Spaces,Ground Maintenance SOR & Dayworks,NORTH WEST ARBORICULTURAL SERVICES LTD,NOR066,15/10/2021,197798,595,CUTTING BACK STREAM GREYSTOKE
Eden District Council,http://opendatacommunities.org/id/district-council/eden,Planning Services,Planning Services,Agency Staff,SUMMIT TOWN PLANNING LTD,SUM004,15/10/2021,197973,1291.35,PLANNING ADVICE MILEAGE
Eden District Council,http://opendatacommunities.org/id/district-council/eden,Human Resources Manager,Central Expenses,Welfare,HANDS FREE COMPUTING LTD,HAN011,15/10/2021,197990,680,DRAGON USB -OLYMPUS VOICE RRECORDER
Eden District Council,http://opendatacommunities.org/id/district-council/eden,Transformation & Customers Head of,Central Expenses,Supplies general,HEATONS GROUP LTD,LAK004,15/10/2021,198083,1316.52,STATIONERY
Eden District Council,http://opendatacommunities.org/id/district-council/eden,Commercial Services Manager,Museum,Other charges for services,KAREN MACDOUGALL MA DIP ARCH,MCD001,22/10/2021,198086,705,DELIVERY OF NEOLOITHIC SESSIONS
Eden District Council,http://opendatacommunities.org/id/district-council/eden,Transformation & Customers Head of,Communications Services,Social Media,UPBEAT NORTH LTD,HYD002,22/10/2021,198146,1139.4,APPLEBY FAIR 6 MONTHS SUPPORT
Eden District Council,http://opendatacommunities.org/id/district-council/eden,Legal Services Manager,Land Management,Building Maintenance,CBS ELECTRICAL LTD,CBS001,22/10/2021,198147,3485.89,electrical works / supplies
Eden District Council,http://opendatacommunities.org/id/district-council/eden,Environmental Services,1996 Mandatory Renovation Grants,Capital grants,TOP NOTCH CONTRACTORS LTD,TOP003,22/10/2021,198152,5750,FIN PAYMENT GRANT REF 200056
Eden District Council,http://opendatacommunities.org/id/district-council/eden,Environmental Services,Environmental Services,Agency Staff,VIVID RESOURCING,VIV001,22/10/2021,198162,1480,TIME SHEET WE 03.10.21 BN
Eden District Council,http://opendatacommunities.org/id/district-council/eden,Legal Services Manager,Register of Electors,Advertising,MALLINA GROUP,MAL017,22/10/2021,198165,580,COMMUNITY INFO FOLDER QTR PG 1 YEAR
Eden District Council,http://opendatacommunities.org/id/district-council/eden,Legal Services Manager,Register of Electors,Printing and stationary,PRINT IMAGE NETWORK LTD,PRI011,22/10/2021,198167,941.54,EDEN ITR 2021
Eden District Council,http://opendatacommunities.org/id/district-council/eden,Legal Services Manager,Register of Electors,Postages,PRINT IMAGE FACILITIES LLP,PRI014,22/10/2021,198169,1565.98,"EDC CANVASS CCA, CCB AND CCF POSTAGE"
Eden District Council,http://opendatacommunities.org/id/district-council/eden,Environmental Services,1996 Mandatory Renovation Grants,Capital grants,KJS ACCESS SOLUTIONS,KJS001,22/10/2021,198191,2988.22,FIN PAYMENT GRANT REF 200046
Eden District Council,http://opendatacommunities.org/id/district-council/eden,Environmental Services,Water Sampling,Professional fees,UNITED UTILITIES WATER PLC,UNI024,22/10/2021,197927,1359.24,INCOME LABS AUG21
Eden District Council,http://opendatacommunities.org/id/district-council/eden,Environmental Services,Water Sampling,Professional fees,UNITED UTILITIES WATER PLC,UNI024,22/10/2021,197928,2628.45,INCOME LABS JULY 21
Eden District Council,http://opendatacommunities.org/id/district-council/eden,Technical Services Manager,Public Conveniences,Building Maintenance,URBASER LIMITED,URB002,22/10/2021,198021,3173.03,AD HOC JULY21
Eden District Council,http://opendatacommunities.org/id/district-council/eden,Technical Services Manager,Land Management,Gas,ROCKSURE SYSTEMS LTD T/A PEOPLESAFE,ROC005,22/10/2021,198035,521.1,SMARTPHONE SUBSCRIPTION
Eden District Council,http://opendatacommunities.org/id/district-council/eden,Technical Services Manager,Public Conveniences,Water testing,MITIE,REN007,22/10/2021,198092,549.43,SERVICES 1.10.21-31.10.21 VARIOUS
Eden District Council,http://opendatacommunities.org/id/district-council/eden,Chief Executive's,One Eden Programme,Agency Staff,MBSP CONSULTANCY LTD,MBS001,22/10/2021,198099,8400,ONE EDEN SEPT 21
Eden District Council,http://opendatacommunities.org/id/district-council/eden,Technical Services Manager,Administrative Buildings,Fire fighting equipment,WALKER FIRE (UK) LTD T/AS NATIONWIDE FIRE TRAINING,WAL049,22/10/2021,198156,626.12,SERVICES MANSION HOUSE
Eden District Council,http://opendatacommunities.org/id/district-council/eden,Environmental Services,1996 Mandatory Renovation Grants,Capital grants,DAY CUMMINS LTD,DAY002,22/10/2021,198158,1218,ARCHITECT FEE GRANT REF 210029
Eden District Council,http://opendatacommunities.org/id/district-council/eden,Technical Services Manager,Administrative Buildings,Fire fighting equipment,WALKER FIRE (UK) LTD T/AS NATIONWIDE FIRE TRAINING,WAL049,22/10/2021,198159,602.47,SERVICES TOWN HALL
Eden District Council,http://opendatacommunities.org/id/district-council/eden,Financial Services Manager,Financial Services,Software � maintenance,UNIT4 BUSINESS SOFTWARE (IRELAND) LTD,UNI038,22/10/2021,198160,1453.73,TRANSFARE SUPPORT 1.4.21-31.3.22
Eden District Council,http://opendatacommunities.org/id/district-council/eden,Environmental Services,Environmental Services,Agency Staff,G2 RECRUITMENT SOLUTIONS,G2R001,22/10/2021,198164,1330,TIME SHEET WE 26.09.21RL
Eden District Council,http://opendatacommunities.org/id/district-council/eden,Financial Services Manager,Insurance,Insurance,MARSH LTD,MAR046,22/10/2021,198170,522.91,INSURANCE / PREMIUM TAX
Eden District Council,http://opendatacommunities.org/id/district-council/eden,Commercial Services Manager,Economic Development and Promotion,Professional fees,WALTON GOODLAND LTD,WAL008,22/10/2021,198176,3000,LOW BECKSIDE NEWTON RIGG
Eden District Council,http://opendatacommunities.org/id/district-council/eden,Environmental Services,Pest Control,Pest Control,RENTOKIL INITIAL PEST CONTROL,REN009,22/10/2021,198178,1023.69,PESTS MISC 1.11.21-30.11.21
Eden District Council,http://opendatacommunities.org/id/district-council/eden,Financial Services Manager,Financial Services,Agency Staff,CASTLEFIELD RECRUITMENT LTD,CAS016,22/10/2021,198184,1872,TIME SHEET WE 3.10.21 SB
Eden District Council,http://opendatacommunities.org/id/district-council/eden,Financial Services Manager,Financial Services,Agency Staff,CASTLEFIELD RECRUITMENT LTD,CAS016,22/10/2021,198185,1872,TIME SHEET WE 26.09.21
Eden District Council,http://opendatacommunities.org/id/district-council/eden,Financial Services Manager,Financial Services,Agency Staff,CASTLEFIELD RECRUITMENT LTD,CAS016,22/10/2021,198186,1872,TIME SHEET WE 19.09.21 SB
Eden District Council,http://opendatacommunities.org/id/district-council/eden,Technical Services Manager,Land Charges,Professional fees,CUMBRIA COUNTY COUNCIL,CCC002,22/10/2021,198197,1206,HIGHWAY SEARCHES SEPT 21
Eden District Council,http://opendatacommunities.org/id/district-council/eden,Technical Services Manager,Recycling,Recycling - Garden Waste,CUMBRIA WASTE RECYCLING LTD,CUM022,22/10/2021,198204,3640,SKIPS SEPT21
Eden District Council,http://opendatacommunities.org/id/district-council/eden,Legal Services Manager,Legal Services,Professional fees,RICHARD HUMPHREYS Q.C,HUM007,22/10/2021,198205,6825,NEWTON RIGG LEGAL FEES
Eden District Council,http://opendatacommunities.org/id/district-council/eden,Technical Services Manager,Recycling,Recycling - Garden Waste,CUMBRIA WASTE RECYCLING LTD,CUM022,22/10/2021,198206,35558.86,CERT GW-6-21/22
Eden District Council,http://opendatacommunities.org/id/district-council/eden,Environmental Services,Appleby Fair,Other charges for services,APPLEBY BOWLING CLUB,APP018,22/10/2021,198207,1250,USE OF PREMISES HORSE FAIR 2021
Eden District Council,http://opendatacommunities.org/id/district-council/eden,Financial Services Manager,Corporate Costs,Audit fee,GRANT THORNTON UK LLP,THO026,22/10/2021,198215,9699,2021-22 EXT AUDIT 1 OF 4
Eden District Council,http://opendatacommunities.org/id/district-council/eden,Technical Services Manager,Parks and Open Spaces,Ground Maintenance SOR & Dayworks,NORTH WEST ARBORICULTURAL SERVICES LTD,NOR066,22/10/2021,198003,720,VEGETATION CUTTING WETHERIGGS
Eden District Council,http://opendatacommunities.org/id/district-council/eden,Commercial Services Manager,Commercial Services,Agency Staff,REDACTED INFORMATION,BAL010,22/10/2021,198104,1057.5,ECON DEV TEAM SUPPORT
Eden District Council,http://opendatacommunities.org/id/district-council/eden,Technical Services Manager,Cemeteries,Grounds Maint Contract additional works,NORTH WEST ARBORICULTURAL SERVICES LTD,NOR066,29/10/2021,198275,3500,TREE WORKS MATTERDALE
Eden District Council,http://opendatacommunities.org/id/district-council/eden,Environmental Services,Environmental Services,Agency Staff,VIVID RESOURCING,VIV001,29/10/2021,198312,1480,TIME SHEET WE 17.10.21
Eden District Council,http://opendatacommunities.org/id/district-council/eden,Legal Services Manager,Legal Services,"Books, publications",SEFTON COUNCIL,SEF001,29/10/2021,198315,500,NORTH WEST CONSORTIUM 21/22
Eden District Council,http://opendatacommunities.org/id/district-council/eden,Commercial Services Manager,Alston TIC Trading A/C,Publications,NORTHERN HERITAGE SERVICES LTD,NOR029,29/10/2021,197759,565.41,MAPS / NOOKS ALSTON LOCAL LINKS
Eden District Council,http://opendatacommunities.org/id/district-council/eden,Planning Services,Environmental Enhancement & Conservation,Professional fees,CAPITA PROPERTY & INFRASTRUCTURE LTD,CAP002,29/10/2021,198155,2293.97,ARBORICULTURAL SERVICES AUG 21
Eden District Council,http://opendatacommunities.org/id/district-council/eden,Commercial Services Manager,Commercial Services,Agency Staff,VIVID RESOURCING,VIV001,29/10/2021,198161,4375,TIME SHEET WE 03.10.21 FM
Eden District Council,http://opendatacommunities.org/id/district-council/eden,Commercial Services Manager,Commercial Services,Agency Staff,VIVID RESOURCING,VIV001,29/10/2021,198163,2750,TIME SHEET WE 03.10.21 GN
Eden District Council,http://opendatacommunities.org/id/district-council/eden,Technical Services Manager,Administrative Buildings,Building Maintenance,CENTRAL POWER SERVICES LTD,CEN002,29/10/2021,198172,1262,MAINTENANCE COVER 1.10.21-30.09.22
Eden District Council,http://opendatacommunities.org/id/district-council/eden,Technical Services Manager,Administrative Buildings,Building Maintenance,CENTRAL POWER SERVICES LTD,CEN002,29/10/2021,198173,871,MAINTENANCE 1.10.21-30.09.22
Eden District Council,http://opendatacommunities.org/id/district-council/eden,Environmental Services,1996 Mandatory Renovation Grants,Capital grants,TOP NOTCH CONTRACTORS LTD,TOP003,29/10/2021,198190,5198,FIN PAYMENT GRANT REF 200077
Eden District Council,http://opendatacommunities.org/id/district-council/eden,Environmental Services,1996 Mandatory Renovation Grants,Capital grants,PPM LTD,PPM001,29/10/2021,198193,4490.5,FIN PAYMENT GRANT REF 210020
Eden District Council,http://opendatacommunities.org/id/district-council/eden,Environmental Services,1996 Mandatory Renovation Grants,Capital grants,KJS ACCESS SOLUTIONS,KJS001,29/10/2021,198195,2486.64,FIN PAYMENT GRANT REF 210023
Eden District Council,http://opendatacommunities.org/id/district-council/eden,Financial Services Manager,Financial Services,Agency Staff,CIPFA PENNA,CIP013,29/10/2021,198208,10064,INTERIM MANAGEMENT SEPT 21 DB
Eden District Council,http://opendatacommunities.org/id/district-council/eden,Corporate Services Director,Director of Corporate Services,Agency Staff,CIPFA PENNA,CIP013,29/10/2021,198209,9680,INTERIM MANAGEMENT SEPT 21 PS
Eden District Council,http://opendatacommunities.org/id/district-council/eden,Commercial Services Manager,Commercial Services,Agency Staff,VIVID RESOURCING,VIV001,29/10/2021,198216,4375,TIME SHEET WE 10.10.21 FM
Eden District Council,http://opendatacommunities.org/id/district-council/eden,Commercial Services Manager,Commercial Services,Agency Staff,VIVID RESOURCING,VIV001,29/10/2021,198218,2750,TIME SHEET WE 10.10.21 GM
Eden District Council,http://opendatacommunities.org/id/district-council/eden,Technical Services Manager,Eden Leisure Centre & Appleby Swimming P,Building Maintenance - Leisure,NORTH LAKES GLASS GLAZING LTD,NOR036,29/10/2021,198227,810,SUPPLY /FIT 2 D/G UNITS
Eden District Council,http://opendatacommunities.org/id/district-council/eden,Commercial Services Manager,Tourism Promotion,Distribution,LIFESTYLE MEDIA GROUP LTD,CAT003,29/10/2021,198022,2292.4,BROCHURES 1-30/09/21
Eden District Council,http://opendatacommunities.org/id/district-council/eden,Commercial Services Manager,Tourism Promotion,Distribution,LIFESTYLE MEDIA GROUP LTD,CAT003,29/10/2021,198098,1346.02,BROCHURES 6.9.21-3.10.21
Eden District Council,http://opendatacommunities.org/id/district-council/eden,Technical Services Manager,Vehicle Parking Off Street,Contract parking Service,CUMBRIA COUNTY COUNCIL,CCC002,29/10/2021,198100,2678.96,PENALTY CHARGES 1.421-30.6.21
Eden District Council,http://opendatacommunities.org/id/district-council/eden,Technical Services Manager,Vehicle Parking Off Street,Cash collection,CARLISLE CITY COUNCIL,CAR015,29/10/2021,198106,3796,OFF ST COLLECTION 2ND QTR 21/22
Eden District Council,http://opendatacommunities.org/id/district-council/eden,Environmental Services,Homelessness,Rent,HEART OF CUMBRIA LTD,HEA029,29/10/2021,198273,2880,RENT 
Eden District Council,http://opendatacommunities.org/id/district-council/eden,Revenue/Benefits Manager,Revenues and Benefits,Unique payments ****,REDACTED INFORMATION,ALL028,29/10/2021,198278,744.22,COUNCIL TAX BAND REDUCTION
Eden District Council,http://opendatacommunities.org/id/district-council/eden,Commercial Services Manager,Economic Development and Promotion,Grants and contributions,JPL PLASTERING CONTRACTORS LTD,JPL001,29/10/2021,198279,500,2 X FIRST APPRENTICESHIPS
Eden District Council,http://opendatacommunities.org/id/district-council/eden,Commercial Services Manager,Economic Development and Promotion,Grants and contributions,REDACTED INFORMATION,KEN026,29/10/2021,198280,500,FIRST APPRENTICE PAYMENT
Eden District Council,http://opendatacommunities.org/id/district-council/eden,Commercial Services Manager,Economic Development and Promotion,Grants and contributions,ASKINS AND LITTLE LTD,ASK012,29/10/2021,198282,500,FIRST APPRENTICE PAYMENT MA
Eden District Council,http://opendatacommunities.org/id/district-council/eden,Commercial Services Manager,Economic Development and Promotion,Grants and contributions,HARKNESS ELECTRICAL LTD,HAR080,29/10/2021,198283,500,FIRST APPRENTICE PAYMENT KH
Eden District Council,http://opendatacommunities.org/id/district-council/eden,Commercial Services Manager,Economic Development and Promotion,Grants and contributions,ATKINSON BUILDING CONTRACTORS,ATK009,29/10/2021,198284,500,3RD APPRENTICE PAYMENT JS
Eden District Council,http://opendatacommunities.org/id/district-council/eden,Environmental Services,Appleby Fair,Building Cleaning (contract),URBASER LIMITED,URB002,29/10/2021,198285,16006.06,CERT 2021/22_BC_07
Eden District Council,http://opendatacommunities.org/id/district-council/eden,Technical Services Manager,Recycling,Recycling  - Bring Sites,CUMBRIA WASTE RECYCLING LTD,CUM022,29/10/2021,198287,7266.28,CERT BS-108
Eden District Council,http://opendatacommunities.org/id/district-council/eden,Technical Services Manager,Recycling,material price fluctuations,CUMBRIA WASTE RECYCLING LTD,CUM022,29/10/2021,198290,1015.32,CERT F-30-2021/22
Eden District Council,http://opendatacommunities.org/id/district-council/eden,Technical Services Manager,Recycling,material price fluctuations,CUMBRIA WASTE RECYCLING LTD,CUM022,29/10/2021,198291,1428.88,CERT F-29-2021/22
Eden District Council,http://opendatacommunities.org/id/district-council/eden,Information Technology Manager,Information Technology,Printers Contract,XEROX FINANCE,XER003,29/10/2021,198293,975,KIP860 RENT 24.11.21-23.02.22
Eden District Council,http://opendatacommunities.org/id/district-council/eden,Transformation & Customers Head of,Corporate Services,Equipment � purchase,IDEAGEN GAEL,IDE007,29/10/2021,198297,3585,PENTANA RISK IMPLEMENTATION OCT21
Eden District Council,http://opendatacommunities.org/id/district-council/eden,Environmental Services,1996 Mandatory Renovation Grants,Capital grants,PPM LTD,PPM001,29/10/2021,198302,941.54,INT PAYMENT GRANT REF 190069
Eden District Council,http://opendatacommunities.org/id/district-council/eden,Technical Services Manager,Recycling,material price fluctuations,CUMBRIA WASTE RECYCLING LTD,CUM022,29/10/2021,198306,1644.53,CERT BS-F-86 21/22
Eden District Council,http://opendatacommunities.org/id/district-council/eden,Technical Services Manager,Recycling,Recycling  - Bring Sites,CUMBRIA WASTE RECYCLING LTD,CUM022,29/10/2021,198307,7266.28,BS-109
Eden District Council,http://opendatacommunities.org/id/district-council/eden,Technical Services Manager,Recycling,Recycling  - Bring Sites,CUMBRIA WASTE RECYCLING LTD,CUM022,29/10/2021,198308,2046.19,CERT BS-F-85-2021/22
Eden District Council,http://opendatacommunities.org/id/district-council/eden,Environmental Services,Homelessness,Professional fees,DAY CUMMINS LTD,DAY002,29/10/2021,198314,875,PRO FEES 
Eden District Council,http://opendatacommunities.org/id/district-council/eden,Environmental Services,Appleby Fair,Street Cleaning Contract,URBASER LIMITED,URB002,29/10/2021,198316,19004.92,CERT M-SC115
Eden District Council,http://opendatacommunities.org/id/district-council/eden,Technical Services Manager,Refuse Collection,Contract refuse collection,URBASER LIMITED,URB002,29/10/2021,198318,75733.44,CERT M-RC115
Eden District Council,http://opendatacommunities.org/id/district-council/eden,Technical Services Manager,Recycling,Em Wks Storage,URBASER LIMITED,URB002,29/10/2021,198323,522.37,cert M-M&ew 115/2021
